Cogmind - Beta 17 @@@ ROGUE MODE // 2026.07.09 @ 12:14:30 Player: pinbox Result: Destroyed by Y-45 Defender with Beam Rifle Performance ------------- Evolutions (0) 0 Regions Visited (2) 400 Robots Destroyed (17) 85 Value Destroyed (492) 492 Prototype IDs (0) 0 Alien Tech Used (0) 0 Bonus (-50) -50 TOTAL SCORE: 927 Bonus ------- Friendly Fire -50 Cogmind --------- Core Integrity 0/250 Matter 300/300 Energy 161/200 System Corruption 0% Temperature Cool (9) Movement Rolling (120) Ox1 Location -10/Subcaves Parts ------- > --- POWER (1) -------- Subdweller Power Source > --- PROPULSION (2) --- Subdweller Monowheel > --- UTILITY (2) ------ Small Storage Unit Subdweller Optics > --- WEAPON (2) ------- Subdweller Beam Cannon Subdweller Beam Cannon > --- INVENTORY (8) ---- Subdweller Power Source Subdweller Monowheel Scrap Shield Subdweller Laser Subdweller Laser Subdweller Shrapnel Launcher Peak State ------------ > --- POWER ------------ Subdweller Power Source > --- PROPULSION ------- Myomer Leg Myomer Leg > --- UTILITY ---------- Small Storage Unit Subdweller Optics > --- WEAPON ----------- Subdweller Laser Subdweller Laser > --- INVENTORY -------- Subdweller Monowheel Subdweller Monowheel Subdweller Optics Scrap Shield [Rating: 24] Favorites ----------- Power Subdweller Power Source Engine Subdweller Power Source Propulsion Myomer Leg Treads Light Treads Leg Myomer Leg Wheel Subdweller Monowheel Utility Small Storage Unit Device Subdweller Optics Storage Small Storage Unit Protection Scrap Shield Weapon Subdweller Laser Energy Gun Subdweller Laser Energy Cannon Subdweller Beam Cannon Ballistic Gun Light Assault Rifle Launcher Grenade Launcher Build | -11 -10 -10 ------- Run | Yrd Mat Sub Slots Evolved . | . . . Power . | . . . Propulsion . | . . . Utility . | . . . Weapon . | . . . Parts Attached 21 | 7 . 14 Power 4 | 1 . 3 Engine 4 | 1 . 3 Core . | . . . Reactor . | . . . Propulsion 5 | 2 . 3 Treads 2 | 2 . . Leg 2 | . . 2 Wheel 1 | . . 1 Hover . | . . . Flight . | . . . Utility 4 | 2 . 2 Device 2 | 1 . 1 Storage 1 | 1 . . Processor . | . . . Hackware . | . . . Protection 1 | . . 1 Artifact . | . . . Weapon 8 | 2 . 6 Energy Gun 2 | . . 2 Energy Cannon 2 | . . 2 Ballistic Gun 3 | 2 . 1 Ballistic Cannon . | . . . Launcher 1 | . . 1 Special Weapon . | . . . Impact Weapon . | . . . Slashing Weapon . | . . . Piercing Weapon . | . . . Special Melee Weapon . | . . . Unidentified Prototypes . | . . . Parts Lost 5 | . . 5 Power 1 | . . 1 Propulsion 2 | . . 2 Utility . | . . . Weapon 2 | . . 2 Highest Loss Streak 2 | . . 2 To Critical Strikes . | . . . Average Backups 5 | 1 3 6 Power . | . 1 . Propulsion 1 | . 1 1 Utility 1 | . . 1 Weapon 2 | . 1 2 Tool/Special . | . . . Unused Backups 9 | . . 9 Power 2 | . . 2 Propulsion 3 | . . 3 Utility 1 | . . 1 Weapon 3 | . . 3 Tool/Special . | . . . Average Slot Usage (%) 97 | . 99 96 Engine 13 | . 13 14 Treads 5 | . 28 1 Leg 16 | . . 19 Wheel 3 | . . 4 Device 13 | . 14 13 Storage 13 | . 14 13 Energy Gun 14 | . . 17 Energy Cannon 5 | . . 6 Ballistic Gun 7 | . 28 4 Peak Build Rating 24 | 7 7 24 Average Rating 17 | 4 6 20 On Entrance 4 | . 7 7 Avg Prop Armor Cover (%) 5 | . . 5 Naked Turns . | . . . Heaviest Build 28 | 11 11 28 Greatest Support 50 | 40 40 50 Greatest Overweight (x) 3 | 1 . 3 Average Overweight (x) . | . . . Largest Inventory Capacity 8 | 8 8 8 Average Capacity 7 | 7 8 7 Most Carried 8 | 2 4 8 Average Carried 6 | 1 3 7 Final Capacity 8 | 8 8 8 Final Carried 7 | 2 4 7 Class Distribution -------------------- 68% | Scavenger-Mutant 31% | Mutant Dominant Class ---------------- Mutant | -10/Materials Scavenger-Mutant | -10/Subcaves Resources | -11 -10 -10 ----------- Run | Yrd Mat Sub Matter Collected 544 | 234 110 200 Remotely . | . . . Salvage Created 507 | 10 245 252 Parts 37 | 4 16 17 Haulers Intercepted . | . . . Recyclers Shooed . | . . . Parts Field Recycled . | . . . Retrieved Matter . | . . . Parts Self-Destructed 1 | . . 1 Prevented . | . . . Parts Restored . | . . . Kills | -11 -10 -10 ------- Run | Yrd Mat Sub Combat Hostiles Destroyed 15 | . 7 8 Guns 10 | . 7 3 Cannons 2 | . . 2 AOE 3 | . . 3 Classes Destroyed 5 | 1 3 1 Tunneler 1 | 1 . . Watcher 1 | . 1 . Swarmer 4 | . 3 1 Grunt 4 | . 4 . Subdweller 7 | . . 7 Best Kill Streak 4 | 1 3 4 Combat Bots Only 4 | . 3 4 Max Kills in Single Turn 2 | 1 1 2 Gunslinging . | . . . Exploded 2 | . . 2 Melee . | . . . Uniques/NPCs Destroyed . | . . . Combat | -11 -10 -10 -------- Run | Yrd Mat Sub Hostile Shots Fired 89 | . 29 60 Missed 25 | . 7 18 Hits 64 | . 22 42 Projectile 64 | . 22 42 Critical Strikes 1 | . . 1 Damage Taken 1181 | . 253 928 Core 254 | . 37 217 Absorbed by Shields . | . . . Core Remaining (%) 100 | 100 . . Volleys Fired 63 | 1 31 31 Largest 2 | 2 2 2 Hottest 160 | 40 40 160 Shots Fired 123 | 2 62 59 Gun 96 | 2 62 32 Cannon 25 | . . 25 Launcher 2 | . . 2 Special . | . . . Kinetic 71 | 2 62 7 Thermal 50 | . . 50 Explosive 2 | . . 2 Electromagnetic . | . . . Robot Hit Streak 16 | 1 10 16 Robot Miss Streak 3 | . 3 1 Penetration Max . | . . . Secondary Targets 1 | . 1 . Max Gunslinging Chain 1 | . 1 . Shots Hit Robots 71 | 1 36 34 Core Hits 36 | 1 21 14 Critical Kills . | . . . Critical Parts Destroyed . | . . . Critical Strikes 1 | . . 1 Destroy 1 | . . 1 Melee Attacks . | . . . Impact . | . . . Slashing . | . . . Piercing . | . . . Sneak Attacks . | . . . Combat Hostiles . | . . . Follow-up Attacks . | . . . Damage Inflicted 1478 | 10 290 1178 Guns 785 | 10 290 485 Cannons 220 | . . 220 Explosions 473 | . . 473 Melee . | . . . Ramming . | . . . Kinetic 359 | 10 290 59 Thermal 646 | . . 646 Explosive 473 | . . 473 Electromagnetic . | . . . Impact . | . . . Slashing . | . . . Piercing . | . . . Highest Corruption . | . . . Average Corruption . | . . . Corruption Purged . | . . . Corruption Blocked . | . . . Overload Shots . | . . . Overflow Damage . | . . . Projectiles . | . . . Explosions . | . . . Melee . | . . . Knockbacks . | . . . Impact . | . . . Kinetic . | . . . Secondary . | . . . Self-Inflicted Damage . | . . . Shots . | . . . Rammed . | . . . Targets Rammed . | . . . Kicked . | . . . Crushed . | . . . Highest Temperature 99 | . 37 99 Average Temperature 20 | . 15 22 Received Heat Transfer 306 | . 108 198 Siege Activations . | . . . Martial Activations . | . . . Shielding Activations . | . . . Robots Disrupted . | . . . Combat Hostiles . | . . . Robots Corrupted . | . . . Combat Hostiles . | . . . Parts Fried . | . . . Impact Corruptions . | . . . Robots Melted . | . . . Combat Hostiles . | . . . Parts Melted . | . . . Heat Transferred 796 | . . 796 Parts Sabotaged . | . . . Parts Stolen . | . . . Parts Stripped . | . . . Power Chain Reactions . | . . . Alert | -11 -10 -10 ------- Run | Yrd Mat Sub Maximum Alert Level . | . . . Low Security (%) 100 | 100 100 . Level 1 . | . . . Level 2 . | . . . Level 3 . | . . . Level 4 . | . . . Level 5 . | . . . High Security . | . . . Max Security . | . . . Peak Influence 132 | 5 132 . Initial . | . . . Average 44 | . 54 . Influence Increases 207 | 5 182 20 Destroy 0b10 Robot/C 160 | . 140 20 Destroy 0b10 Robot/NC 10 | 5 5 . Destroy Leader 22 | . 22 . Lose Combat Pursuer 15 | . 15 . Influence Decreases 203 | 5 90 108 Entered New Map 45 | . . 45 Time Decay 148 | 5 90 53 Lost Part 10 | . . 10 Squads Dispatched 1 | . 1 . Investigation . | . . . Extermination . | . . . Reinforcement 1 | . 1 . Assault . | . . . Garrison . | . . . Intercept . | . . . Searches Triggered . | . . . Construction Impeded . | . . . Haulers Reinforced . | . . . Active Scanning Responses . | . . . Cargo Convoy Interrupts . | . . . Stealth | -11 -10 -10 --------- Run | Yrd Mat Sub Distress Signals 2 | . 2 . Communications Jammed . | . . . Distress Signals . | . . . Times Spotted 32 | . 15 17 Peak Tracking Total 10 | . 4 10 Tactical Retreats 1 | . 1 . Traps | -11 -10 -10 ------- Run | Yrd Mat Sub Traps Triggered 2 | . 1 1 Indirectly . | . . . Trap Hack Attempts . | . . . Triggered . | . . . Disarmed . | . . . Reprogrammed . | . . . Reused . | . . . Traps Extracted . | . . . Installed . | . . . Triggered . | . . . Machines | -11 -10 -10 ---------- Run | Yrd Mat Sub Machines Disabled . | . . . Max in Single Turn . | . . . Machines Repaired . | . . . Machines Dismantled . | . . . Machines Sabotaged . | . . . Overloaded Fab Kills . | . . . Hacking | -11 -10 -10 --------- Run | Yrd Mat Sub Machines Accessed 5 | . 2 3 Terminals 2 | . 2 . Fabricators . | . . . Repair Stations . | . . . Recycling Units . | . . . Scanalyzers . | . . . Garrison Access . | . . . Total Hacks 11 | . 4 7 Successful 8 | . 1 7 Failed 3 | . 3 . Catastrophic 1 | . 1 . Database Lockouts . | . . . Manual 3 | . 3 . Terminals 4 | . 4 . Fabricators . | . . . Repair Stations . | . . . Recycling Units . | . . . Scanalyzers . | . . . Garrison Access . | . . . Terminal Hacks 8 | . 1 7 Record 5 | . . 5 Open Door 1 | . . 1 Zone Layout 1 | . 1 . Release Object 1 | . . 1 Fabricator Hacks . | . . . Repair Station Hacks . | . . . Recycling Unit Hacks . | . . . Scanalyzer . | . . . Garrison Access Hacks . | . . . Unauthorized Hacks . | . . . Terminals . | . . . Fabricators . | . . . Repair Stations . | . . . Recycling Units . | . . . Scanalyzers . | . . . Garrison Access . | . . . Data Cores Recovered . | . . . Used . | . . . Hacking Detections 2 | . 2 . Full Trace Events . | . . . Feedback Events . | . . . Feedback Blocked . | . . . Robot Schematics Acquired . | . . . Robots Built . | . . . Authchips . | . . . Time . | . . . Total Robot Build Rating . | . . . Part Schematics Acquired . | . . . Parts Built . | . . . Authchips . | . . . Time . | . . . Total Part Build Rating . | . . . Part Studies Acquired . | . . . Parts Repaired . | . . . Time . | . . . Parts Recycled . | . . . Recycled Matter . | . . . Retrieved Matter . | . . . Retrieved Components . | . . . Parts Scanalyzed . | . . . Part Schematics Acquired . | . . . Parts Damaged . | . . . Bothacking | -11 -10 -10 ------------ Run | Yrd Mat Sub Used RIF Installer . | . . . Robots Hacked . | . . . Non-combat . | . . . Combat . | . . . Robot Hacks Applied . | . . . Relay Couplers Released . | . . . Fabnet Peak Effective % . | . . . Robots Rewired . | . . . Allies Hacked . | . . . Hacks Repelled . | . . . Allies | -11 -10 -10 -------- Run | Yrd Mat Sub Total Allies . | . . . Largest Group . | . . . Highest-Rated Group . | . . . Highest-Rated Ally . | . . . Total Orders . | . . . Ally Attacks . | . . . Total Damage . | . . . Kills . | . . . Allies Corrupted . | . . . Allies Melted . | . . . Intel | -11 -10 -10 ------- Run | Yrd Mat Sub Active Infowar (turns) 515 | 14 326 175 Optics 123 | . . 123 Seismic 392 | 14 326 52 Robot Analysis Total . | . . . Derelict Logs Recovered 2 | . . 2 Drone Launches . | . . . Drone Recoveries . | . . . Exploration | -11 -10 -10 ------------- Run | Yrd Mat Sub Turns Passed 2291 | 70 326 1895 Spaces Moved 1578 | 37 149 1392 Core 4 | 3 . 1 Treads 233 | 34 149 50 Legs 1168 | . . 1168 Wheels 173 | . . 173 Hover . | . . . Flight . | . . . Fastest Speed 50 | 50 160 120 Average Speed 125 | 152 160 121 Slowest Speed 200 | 160 160 200 Overloaded Moves . | . . . Propulsion Burnouts . | . . . Robots Hopped . | . . . Potential Cave-ins 3 | . . 3 Cave-ins Triggered . | . . . Exploration Rate (%) 37 | 3 33 76 Regions Visited 2 Branch Regions 1 Pre-discovered Areas 2 | . . 2 Known Exits Taken . | . . . Unknown Exits Taken 2 | 1 1 . Scrap Searched . | . . . Spaces Dug 9 | . . 9 Terrain Destroyed 27 | . . 27 Melee . | . . . Projectile 11 | . . 11 AOE 16 | . . 16 Terrain Rammed . | . . . Walls Destroyed . | . . . Machines Disabled . | . . . Actions | -11 -10 -10 --------- Run | Yrd Mat Sub Total 1781 | 46 187 1548 Wait 61 | . 5 56 Move 1576 | 36 148 1392 Hop . | . . . Pick Up 22 | 2 2 18 Fast Attach 15 | 7 1 7 Attach 11 | . . 11 Detach 9 | . . 9 Swap . | . . . Drop 18 | . . 18 Fire 63 | 1 31 31 Melee . | . . . Ram . | . . . Kick . | . . . Crush . | . . . Escape Stasis . | . . . Rewire . | . . . Trap . | . . . Miscellaneous 6 | . . 6 Route ------- -11/Scrapyard -10/Materials (discovered 2 exits: [*Min] / *Sub) -10/Subcaves (discovered 1 exit: [*Mat]) History --------- Turn | Location | Event 2 | -11/Scrapyard | Met Revision 17 43 | -11/Scrapyard | Discovered new exit (range 14) 71 | -11/Scrapyard | Entered Materials 163 | -10/Materials | Discovered new exit (range 7) 312 | -10/Materials | Build established: Mutant 388 | -10/Materials | Discovered new exit (range 7) 397 | -10/Materials | Entered Subcaves 442 | -10/Subcaves | Ambushed by swarm of Subdwellers 446 | -10/Subcaves | Ambushed by Subdwellers from Twisted Machinery 780 | -10/Subcaves | Released subatomizers from SUBCON Basin 803 | -10/Subcaves | Build established: Scavenger-Mutant 991 | -10/Subcaves | Learned location of Zion (-6) 991 | -10/Subcaves | Met a Zionite searching for "candidates" 1019 | -10/Subcaves | Discovered new exit (range 8) 1247 | -10/Subcaves | Shifting Twisted Machinery released Scrap Shield 1366 | -10/Subcaves | Core integrity fell below 50% 1411 | -10/Subcaves | Learned Materials stockpile data 1531 | -10/Subcaves | Visited Clippyterm 1534 | -10/Subcaves | Learned location of Section 7 (-2) 1534 | -10/Subcaves | Learned Factory garrison access intel 2011 | -10/Subcaves | A swath of the cavern ceiling suddenly collapsed 2036 | -10/Subcaves | Core integrity fell below 20% 2193 | -10/Subcaves | Shifting Twisted Machinery released Sub. Power Source 2292 | -10/Subcaves | Destroyed by Y-45 Defender with Beam Rifle Last Messages --------------- A swath of the cavern ceiling suddenly collapses. 02027_ E6-UR6(R) heat spikes uncontrollably. 02029_ Myomer Leg destroyed. 02035_ Sub. Laser shoots sparks and powers down. 02035_ Destroyed Scrap Shield. 02038_ E6-UR6(R) destroyed. 02072_ The unstable cave ceiling collapses. 02163_ Acquired Broken Sub. Power Source. Sub. Power Source falls loose from the Twisted Machinery. 02224_ Acquired Sub. Laser. 02229_ Dropped Broken Sub. Power Source. 02229_ Acquired Sub. Power Source. 02251_ S-10 Pest destroyed. 02259_ Lgt. Assault Rifle fries itself beyond repair. 02274_ Sub. Power Source destroyed. 02282_ Acquired 15 matter. 02283_ Subatomizers dissect the Sub. Monowheel. Map ----- +----------------------------------------------------+ | ?????????????????????????????????????????????????? | | ?????????????????????????????????????????????????? | | ?????????????????????????????????????????????????? | | ?????????????????????????????????????????????????? | | ?????????????????????????????????????????????????? | | ?????????????????????????????????????????????????? | | ??????????????????????????????? ??????????????#??? | | ??????????????????????????????# ???????????? ##? | | ?????????????????????????????## ??????????? "# | | ????????????????????????????## ???????????? | | ???????????????????????????## ?????###???? | | ??????????????????????????? ###### ##??? | | ???????????????????????????? # ##?? | | ?????????????????????????????? # ##?# | | ???????????????????????????????# # ### | | ???????????????????????????????# ## | | ???????????????????????????????# ## | | ??????????????????????????????### | | ??????????????????????????????# ## #?#% | | ??????????????????????????????# ## ## ### | | ?????????????????????????????## ## ## | | ?????????????????????????????# Y | | ????????????# ?????????####?# !=& | | ?????????????# ###### ### &%] | | ?????????????# ### | | ??????????????# @ #?# ### | | ????????????????# #?# ##?# ### | | ????????????????# #?# #??# ##?## | | ??????????????# ### #?# ##??# #???# | | ?????????????# ???###### #???# ## | | ?????????????## ??????????## #???# | | ??????????????# ????????????## ???# ## | | ??????????????#???????????????## ??#### ?? | | ???????????????????????????????? ?????# ???? | | ???????????????????????????????? ???# ????? | | ????????????????????????????????# ## #???#?????? | | ?????????????????????????????????###?###?????????? | | ?????????????????????????????????????????????????? | | ?????????????????????????????????????????????????? | | ?????????????????????????????????????????????????? | | ????????????????????????????????????????????????## | | ????????????????????????????????????????????????# | | ????????????????????????????????????????????????# | | ????????????????????????????????????????????????# | | ????????????????????????????????????????????????# | | ????????????????????????????????????????????????## | | ????????????????????????????????????????????????# | | ????????????????????????????????????????????????# | | ??????????????????##???????????????????????????### | | ??????????????????# #??????????????????????????# | +----------------------------------------------------+ Best States ------------- Heat Dissipation 25 Energy Generation 15 Energy Capacity 200 Matter Stores 300 Matter Capacity 300 Sight Range 21 Terrain Scan Density 10 Armor Coverage 800 Evasion (%) 55 Recoil Reduction 2 Item Schematics ----------------- None Robot Schematics ------------------ None Fabricated ------------ Nothing Repaired ---------- Nothing Studied --------- None Alien Tech Used ----------------- None Achievements -------------- None Challenges ------------ None Game ------ Seed GrapheneGammaMount Manual? 0 Play Time 00:20:46 Cumulative 36.9 hours Start 2026.07.09 @ 11:57:08 End 2026.07.09 @ 12:14:30 Sessions 1 Manual Loads 0 Difficulty Rogue Special Mode None Game No. 42 Rogue 42 Adventurer 0 Explorer 0 Win Type - Total 1 Types 1/0/0/0/0/0/0/0/0/0 Lore% 36 Gallery% 33 Achievement% 30 Wizard Run 0 Options --------- Layout 1 ASCII 0 Keyboard 1 Movement Numpad Keybinds 1 Fullscreen 2 Font 24/Smallcaps Map View 50x40 Zoom Use 0% Tactical HUD 1 Map Filters NONE Filters NONE Steam 1 RUN: 59506b12-80c6-4804-9fb9-c9b22fafb2e1